Cogmind - Beta 12 @@@ ROGUE MODE // 2023.03.05 @ 21:35:38 Player: Delirus Result: Self-destructed Performance ------------- Evolutions (3) 1500 Regions Visited (10) 2000 Robots Destroyed (78) 390 Value Destroyed (2665) 2665 Prototype IDs (35) 700 Alien Tech Used (1) 200 Bonus (-482) -482 TOTAL SCORE: 6973 Bonus ------- Follower Combat Kills 108 Aligned with FarCom 300 Met Data Miner 300 Friendly Fire -1190 Cogmind --------- Core Integrity 221/700 Matter 277/300 Energy 100/100 System Corruption 1% Temperature Cool (0) Movement Core (50) Location -6/Proximity Caves Parts ------- > --- POWER (1) -------- (None) > --- PROPULSION (5) --- (None) > --- UTILITY (5) ------ (None) > --- WEAPON (2) ------- (None) > --- INVENTORY (5) ---- Potential Leg Large Battery (200) Hardened Heavy Armor Plating Plasma Cannon Peak State ------------ > --- POWER ------------ Light Angular Momentum Engine > --- PROPULSION ------- Medium Treads Medium Treads Carbon-fiber Leg Potential Leg Potential Leg > --- UTILITY ---------- Advanced Heat Sink Huge Storage Unit Machine Analyzer Advanced Targeting Computer Medium Reactive Plating > --- WEAPON ----------- Heavy Ion Cannon Gauss Cannon > --- INVENTORY -------- Light Nuclear Core Advanced Treads Medium Treads Medium Treads Advanced Heat Sink Large Battery Large Matter Pod Machine Analyzer Improved Terrain Scanner Seismic Detector Advanced Targeting Computer Hardened Heavy Armor Plating Improved Light Armor Plating Layered Light Armor Plating Improved Shield Generator Improved Shield Generator Hacking Suite High-powered Tractor Beam Thief Drone Bay Plasma Cannon Plasma Cannon Gauss Rifle Missile Launcher Axe [Rating: 68] Favorites ----------- Power Light Nuclear Core Engine Improved Deuterium Engine Power Core Light Nuclear Core Propulsion Potential Leg Treads Light Treads Leg Potential Leg Wheel Compact Wheel Utility Huge Storage Unit Device Advanced Heat Sink Storage Huge Storage Unit Processor Machine Analyzer Hackware Hacking Suite Protection Medium Reactive Plating Weapon Gauss Cannon Energy Gun EM Pulse Gun Energy Cannon Advanced Beam Cannon Ballistic Gun Gauss Rifle Ballistic Cannon Gauss Cannon Launcher Rocket Launcher Impact Weapon Hammer Slashing Weapon Axe Build | -11 -10 -10 -10 -9 -8 -7 -7 -7 -7 -6 ------- Run | Jun Mat Min Exi Min Mat Fac Low Low Dat Pro Slots Evolved 6 | . . . . . 4 2 . . . . Power . | . . . . . . . . . . . Propulsion 3 | . . . . . 2 1 . . . . Utility 3 | . . . . . 2 1 . . . . Weapon . | . . . . . . . . . . . Parts Attached 113 | 3 14 1 2 15 12 35 6 3 2 20 Power 11 | 1 2 . . 1 . 4 . . . 3 Engine 6 | 1 1 . . 1 . 2 . . . 1 Core 5 | . 1 . . . . 2 . . . 2 Reactor . | . . . . . . . . . . . Propulsion 27 | 2 1 . 2 . 2 9 . . . 11 Treads 14 | 1 1 . . . 2 4 . . . 6 Leg 11 | . . . 2 . . 4 . . . 5 Wheel 2 | 1 . . . . . 1 . . . . Hover . | . . . . . . . . . . . Flight . | . . . . . . . . . . . Utility 29 | . 4 . . 4 2 14 2 1 . 2 Device 9 | . 1 . . 2 1 3 1 . . 1 Storage 3 | . 2 . . . . 1 . . . . Processor 5 | . . . . 1 . 3 1 . . . Hackware 3 | . . . . . . 3 . . . . Protection 9 | . 1 . . 1 1 4 . 1 . 1 Artifact . | . . . . . . . . . . . Weapon 46 | . 7 1 . 10 8 8 4 2 2 4 Energy Gun . | . . . . . . . . . . . Energy Cannon 7 | . 2 . . 2 1 2 . . . . Ballistic Gun 2 | . . . . . . 1 . . 1 . Ballistic Cannon 18 | . 4 . . 4 3 2 2 . . 3 Launcher 11 | . 1 1 . 4 . 1 1 1 1 1 Special Weapon . | . . . . . . . . . . . Impact Weapon 5 | . . . . . 4 1 . . . . Slashing Weapon 3 | . . . . . . 1 1 1 . . Piercing Weapon . | . . . . . . . . . . . Special Melee Weapon . | . . . . . . . . . . . Unidentified Prototypes 2 | . 1 . . . . . . 1 . . Parts Lost 23 | . 4 . . 3 . 2 . . . 14 Power 5 | . 1 . . 1 . 1 . . . 2 Propulsion 10 | . 1 . . . . 1 . . . 8 Utility 2 | . . . . 1 . . . . . 1 Weapon 6 | . 2 . . 1 . . . . . 3 Highest Loss Streak 3 | . 2 . . 2 . 2 . . . 3 To Critical Strikes 1 | . . . . . . 1 . . . . Average Slot Usage (%) 95 | . 93 100 100 98 98 98 100 99 85 83 Engine 5 | . 5 . . 5 9 6 7 7 7 1 Core 3 | . 6 14 14 7 . . . . . 4 Treads 15 | . 24 28 20 . 16 16 7 7 7 8 Leg 17 | . . . 7 28 18 21 30 30 30 22 Device 3 | . 3 . . 3 9 5 . . . 3 Storage 9 | . 14 14 14 14 9 7 7 7 7 6 Processor 11 | . . . . 8 9 13 22 23 23 15 Hackware 1 | . . . . . . 4 . . . . Protection 6 | . 6 14 14 2 9 4 7 6 7 5 Energy Cannon 4 | . 12 . . 4 9 7 . . . . Ballistic Gun 1 | . . . . . . . 7 7 . 1 Ballistic Cannon 7 | . 14 . . 12 6 6 6 2 . 8 Launcher 4 | . . 27 28 10 . . . 3 . 1 Naked Turns 172 | . . . . . . . . . . 172 Heaviest Build 125 | 14 55 55 55 56 57 125 123 121 120 121 Greatest Support 112 | 16 40 40 60 60 60 90 85 85 85 112 Greatest Overweight (x) 3 | . 3 1 1 . . 3 1 1 1 3 Average Overweight (x) . | . . 1 . . . . 1 1 1 . Largest Inventory Capacity 25 | 8 20 20 20 20 20 25 25 25 25 25 Average Capacity 21 | 8 13 20 20 20 20 24 25 25 25 22 Most Carried 25 | 6 19 20 20 20 20 25 25 25 25 25 Average Carried 20 | 6 12 19 19 19 19 23 24 24 25 21 Final Capacity 25 | 8 20 20 20 20 20 25 25 25 25 5 Final Carried 25 | 6 19 20 20 20 20 24 25 25 25 5 Class Distribution -------------------- 89% | Mutant 6% | Hacker-Mutant 4% | Scavenger-Mutant Dominant Class ---------------- Mutant | -10/Materials Mutant | -10/Mines Mutant | -10/Exiles Mutant | -9/Mines Mutant | -8/Materials Mutant | -7/Factory Mutant | -7/Lower Caves Mutant | -7/Lower Caves Mutant | -7/Data Miner Mutant | -6/Proximity Caves Resources | -11 -10 -10 -10 -9 -8 -7 -7 -7 -7 -6 ----------- Run | Jun Mat Min Exi Min Mat Fac Low Low Dat Pro Matter Collected 3154 | 220 597 20 . 555 119 655 215 108 . 665 Remotely 40 | . . . . . . 40 . . . . Salvage Created 2638 | 18 705 . . 390 178 799 159 25 . 364 Parts 138 | 3 49 . . 10 6 56 3 3 . 8 Haulers Intercepted 2 | . 1 . . . 1 . . . . . Recyclers Shooed . | . . . . . . . . . . . Parts Field Recycled . | . . . . . . . . . . . Retrieved Matter . | . . . . . . . . . . . Parts Self-Destructed 12 | . . . . . . . 3 2 . 7 Prevented 3 | . . . . . . . . . . 3 Kills | -11 -10 -10 -10 -9 -8 -7 -7 -7 -7 -6 ------- Run | Jun Mat Min Exi Min Mat Fac Low Low Dat Pro Combat Hostiles Destroyed 65 | . 17 . . 8 2 20 4 3 . 11 Guns 10 | . 3 . . . . 3 3 . . 1 Cannons 40 | . 13 . . 1 2 16 1 . . 7 AOE 14 | . 1 . . 7 . . . 3 . 3 Classes Destroyed 16 | 1 7 . . 3 . 1 2 . . 2 Worker 2 | . 1 . . . . 1 . . . . Builder 1 | . 1 . . . . . . . . . Tunneler 3 | 1 . . . . 1 1 . . . . Hauler 2 | . 1 . . . 1 . . . . . Recycler 4 | . . . . 4 . . . . . . Operator 4 | . 3 . . . 1 . . . . . Watcher 3 | . 2 . . . . 1 . . . . Swarmer 13 | . 3 . . . . 7 . 3 . . Grunt 32 | . 14 . . . 2 9 . . . 7 Brawler 2 | . . . . . . . 2 . . . Duelist 1 | . . . . . . . . . . 1 Sentry 2 | . . . . . . . 1 . . 1 Demolisher 1 | . . . . 1 . . . . . . Hunter 2 | . . . . . . . . . . 2 Programmer 5 | . . . . . . 4 1 . . . Assembled 7 | . . . . 7 . . . . . . Best Kill Streak 7 | 1 7 . . 5 2 5 3 3 . 4 Combat Bots Only 5 | . 5 . . 5 1 5 3 3 . 4 Max Kills in Single Turn 2 | 1 2 . . 2 1 2 1 2 . 1 Gunslinging . | . . . . . . . . . . . Exploded 2 | . 1 . . 2 . . . 2 . 1 Melee . | . . . . . . . . . . . Uniques/NPCs Destroyed 1 | . . . . 1 . . . . . . YI-UF0 (-9/Mines) Combat | -11 -10 -10 -10 -9 -8 -7 -7 -7 -7 -6 -------- Run | Jun Mat Min Exi Min Mat Fac Low Low Dat Pro Damage Taken 4948 | . 549 . . 580 171 1077 472 22 . 2077 Core 689 | . 45 . . 130 35 93 67 . . 319 Absorbed by Shields 65 | . . . . . . 65 . . . . Core Remaining (%) 74 | 100 . . . 30 93 . . . . . Volleys Fired 226 | 1 51 . . 33 21 62 18 3 . 37 Largest 2 | 2 2 . . 2 2 2 2 2 . 2 Hottest 128 | 80 103 . . 103 107 128 93 76 . 96 Shots Fired 421 | 2 102 . . 54 38 117 34 4 . 70 Gun 62 | 2 21 . . . . 7 18 1 . 13 Cannon 331 | . 81 . . 42 38 108 11 1 . 50 Launcher 28 | . . . . 12 . 2 5 2 . 7 Special . | . . . . . . . . . . . Kinetic 250 | . 58 . . 30 17 55 25 2 . 63 Thermal 120 | . 23 . . 12 21 60 4 . . . Explosive 28 | . . . . 12 . 2 5 2 . 7 Electromagnetic 23 | 2 21 . . . . . . . . . Robot Hit Streak 16 | 1 7 . . 4 3 6 13 . . 16 Robot Miss Streak 6 | 1 4 . . 2 4 6 3 . . 2 Penetration Max 1 | . . . . . . 1 1 . . . Secondary Targets . | . . . . . . . . . . . Shots Hit Robots 235 | 1 55 . . 32 19 51 23 . . 54 Core Hits 131 | 1 29 . . 23 8 31 8 4 . 27 Critical Kills 1 | . . . . . . 1 . . . . Critical Parts Destroyed . | . . . . . . . . . . . Critical Strikes 15 | . 1 . . 1 . 4 1 . . 8 Meltdown 1 | . . . . . . 1 . . . . Blast 14 | . 1 . . 1 . 3 1 . . 8 Melee Attacks 17 | . . . . . 10 3 1 3 . . Impact 11 | . . . . . 10 1 . . . . Slashing 6 | . . . . . . 2 1 3 . . Piercing . | . . . . . . . . . . . Sneak Attacks 1 | . . . . . 1 . . . . . Combat Hostiles . | . . . . . . . . . . . Follow-up Attacks . | . . . . . . . . . . . Damage Inflicted 6848 | 12 1118 . . 1055 430 1683 704 204 . 1642 Guns 792 | 12 193 . . . . 100 274 . . 213 Cannons 4218 | . 812 . . 474 378 1336 241 . . 977 Explosions 1785 | . 112 . . 581 . 247 189 204 . 452 Melee 52 | . . . . . 52 . . . . . Ramming 1 | . 1 . . . . . . . . . Kinetic 3296 | . 565 . . 311 175 639 416 . . 1190 Thermal 1621 | . 359 . . 163 203 797 99 . . . Explosive 1673 | . . . . 581 . 247 189 204 . 452 Electromagnetic 205 | 12 193 . . . . . . . . . Impact 52 | . . . . . 52 . . . . . Slashing . | . . . . . . . . . . . Piercing . | . . . . . . . . . . . Highest Corruption 1 | . . . . . . 1 1 1 1 1 Average Corruption 1 | . . . . . . 1 1 1 1 1 Corruption Purged . | . . . . . . . . . . . Corruption Blocked . | . . . . . . . . . . . Effects 37 | . . . . . . 21 6 1 . 9 Message Errors 11 | . . . . . . 6 3 1 . 1 Matter Fused 5 | . . . . . . 4 1 . . . Heat Flow Errors 6 | . . . . . . 3 1 . . 2 Energy Discharges 3 | . . . . . . 2 . . . 1 Parts Rejected 1 | . . . . . . 1 . . . . Data Loss (minor) 5 | . . . . . . 3 . . . 2 Data Loss (major) 1 | . . . . . . . 1 . . . Misfires 3 | . . . . . . 1 . . . 2 Alerts 2 | . . . . . . 1 . . . 1 Overload Shots . | . . . . . . . . . . . Overflow Damage 154 | . 14 . . 18 21 58 11 . . 32 Projectiles 94 | . 11 . . . 9 48 . . . 26 Explosions 48 | . 3 . . 18 . 10 11 . . 6 Melee 12 | . . . . . 12 . . . . . Knockbacks 36 | . 5 . . 8 3 10 . . . 10 Impact 1 | . . . . . 1 . . . . . Kinetic 34 | . 4 . . 8 2 10 . . . 10 Secondary 1 | . 1 . . . . . . . . . Self-Inflicted Damage 251 | . 26 . . 22 . 27 54 . . 122 Shots 8 | . 1 . . 1 . 1 2 . . 3 Rammed 1 | . 1 . . . . . . . . . Targets Rammed 1 | . 1 . . . . . . . . . Kicked . | . . . . . . . . . . . Crushed . | . . . . . . . . . . . Highest Temperature 372 | 18 192 . . 342 30 372 272 9 . 318 Average Temperature 91 | 12 68 . . 109 17 109 71 6 . 123 Received Heat Transfer 1285 | . 258 . . 40 117 288 144 . . 438 Effects 2 | . . . . 1 . 1 . . . . Energy Bleed 1 | . . . . 1 . . . . . . Damage (minor) 1 | . . . . . . 1 . . . . Siege Activations . | . . . . . . . . . . . Robots Corrupted . | . . . . . . . . . . . Combat Hostiles . | . . . . . . . . . . . Parts Fried 1 | . . . . . 1 . . . . . Impact Corruptions 1 | . . . . . 1 . . . . . Robots Melted 1 | . . . . . . 1 . . . . Combat Hostiles 1 | . . . . . . 1 . . . . Parts Melted 2 | . . . . . . 2 . . . . Heat Transferred 2743 | . 544 . . 296 370 1422 111 . . . Parts Sabotaged . | . . . . . . . . . . . Parts Stolen . | . . . . . . . . . . . Parts Stripped . | . . . . . . . . . . . Power Chain Reactions 1 | . 1 . . . . . . . . . Missiles Intercepted . | . . . . . . . . . . . Alert | -11 -10 -10 -10 -9 -8 -7 -7 -7 -7 -6 ------- Run | Jun Mat Min Exi Min Mat Fac Low Low Dat Pro Peak Influence 352 | 5 352 1 . 142 110 271 . . . . Initial 54 | . 3 1 . . 54 32 . . . . Average 75 | 2 136 . . 40 45 75 . . . . Maximum Alert Level 1 | . 1 . . . . 1 . . . . Low Security (%) 89 | 100 66 100 . 100 100 96 . . . . Level 1 10 | . 33 . . . . 3 . . . . Level 2 . | . . . . . . . . . . . Level 3 . | . . . . . . . . . . . Level 4 . | . . . . . . . . . . . Level 5 . | . . . . . . . . . . . High Security . | . . . . . . . . . . . Max Security . | . . . . . . . . . . . Squads Dispatched 17 | . 5 . . . 3 9 . . . . Investigation 6 | . 3 . . . 2 1 . . . . Extermination 4 | . . . . . . 4 . . . . Reinforcement 7 | . 2 . . . 1 4 . . . . Assault . | . . . . . . . . . . . Garrison . | . . . . . . . . . . . Intercept . | . . . . . . . . . . . Searches Triggered . | . . . . . . . . . . . Construction Impeded 1 | . . . . . . 1 . . . . Haulers Reinforced . | . . . . . . . . . . . Active Scanning Responses . | . . . . . . . . . . . Cargo Convoy Interrupts . | . . . . . . . . . . . Stealth | -11 -10 -10 -10 -9 -8 -7 -7 -7 -7 -6 --------- Run | Jun Mat Min Exi Min Mat Fac Low Low Dat Pro Distress Signals 3 | . 1 . . 1 1 . . . . . Communications Jammed . | . . . . . . . . . . . Distress Signals . | . . . . . . . . . . . Times Spotted 114 | . 27 . . 18 7 39 4 3 . 16 Peak Tracking Total 10 | . 6 . . 10 3 9 3 3 . 4 Tactical Retreats 16 | . . . . 5 2 3 . . . 6 Traps | -11 -10 -10 -10 -9 -8 -7 -7 -7 -7 -6 ------- Run | Jun Mat Min Exi Min Mat Fac Low Low Dat Pro Traps Triggered 2 | . 1 . . . . 1 . . . . Indirectly . | . . . . . . . . . . . Trap Hack Attempts . | . . . . . . . . . . . Triggered . | . . . . . . . . . . . Disarmed 6 | . . . . . 6 . . . . . Reprogrammed . | . . . . . . . . . . . Reused . | . . . . . . . . . . . Traps Extracted . | . . . . . . . . . . . Installed . | . . . . . . . . . . . Triggered 4 | . . . . . . . 1 . . 3 Machines | -11 -10 -10 -10 -9 -8 -7 -7 -7 -7 -6 ---------- Run | Jun Mat Min Exi Min Mat Fac Low Low Dat Pro Machines Disabled 9 | . 1 . . 1 1 4 . 1 . 1 Max in Single Turn 1 | . 1 . . 1 1 1 . 1 . 1 Machines Repaired . | . . . . . . . . . . . Machines Sabotaged . | . . . . . . . . . . . Overloaded Fab Kills . | . . . . . . . . . . . Hacking | -11 -10 -10 -10 -9 -8 -7 -7 -7 -7 -6 --------- Run | Jun Mat Min Exi Min Mat Fac Low Low Dat Pro Machines Accessed 27 | . 7 . 1 2 7 4 1 1 4 . Terminals 17 | . 6 . . 1 6 4 . . . . Fabricators . | . . . . . . . . . . . Repair Stations . | . . . . . . . . . . . Recycling Units 1 | . 1 . . . . . . . . . Scanalyzers . | . . . . . . . . . . . Garrison Access 1 | . . . . . 1 . . . . . Total Hacks 95 | . 18 . 1 6 23 12 1 1 33 . Successful 54 | . 6 . 1 4 5 3 1 1 33 . Failed 41 | . 12 . . 2 18 9 . . . . Catastrophic 11 | . 4 . . . 4 3 . . . . Database Lockouts . | . . . . . . . . . . . Manual 47 | . 17 . 1 5 18 6 . . . . Terminals 54 | . 17 . . 5 20 12 . . . . Fabricators . | . . . . . . . . . . . Repair Stations . | . . . . . . . . . . . Recycling Units 1 | . 1 . . . . . . . . . Scanalyzers . | . . . . . . . . . . . Garrison Access 3 | . . . . . 3 . . . . . Terminal Hacks 53 | . 5 . 1 4 5 3 1 1 33 . Record 13 | . 1 . . . . . . 1 11 . Part Schematic 15 | . 1 . . 2 . . . . 12 . Robot Schematic 7 | . . . . . . . . . 7 . Robot Analysis 1 | . . . . 1 . . . . . . Prototype ID Bank 3 | . . . . . . . . . 3 . Open Door 2 | . . . . 1 . . 1 . . . Branch Access Points 2 | . . . . . 1 1 . . . . Terminal Index 2 | . 1 . . . . 1 . . . . Alert Level 1 | . . . . . 1 . . . . . Unreport Threat 1 | . 1 . . . . . . . . . Disarm Traps 1 | . . . . . 1 . . . . . Dispatch Records 1 | . 1 . . . . . . . . . Recall Reinforcements 1 | . . . . . 1 . . . . . Zone Layout 2 | . . . . . 1 1 . . . . EX-Prototype ID Bank 1 | . . . 1 . . . . . . . Fabricator Hacks . | . . . . . . . . . . . Repair Station Hacks . | . . . . . . . . . . . Recycling Unit Hacks . | . . . . . . . . . . . Scanalyzer . | . . . . . . . . . . . Garrison Access Hacks . | . . . . . . . . . . . Unauthorized Hacks 1 | . 1 . . . . . . . . . Terminals . | . . . . . . . . . . . Fabricators . | . . . . . . . . . . . Repair Stations . | . . . . . . . . . . . Recycling Units 1 | . 1 . . . . . . . . . Tunnel 1 | . 1 . . . . . . . . . Scanalyzers . | . . . . . . . . . . . Garrison Access . | . . . . . . . . . . . Data Cores Recovered 2 | . 1 . . . 1 . . . . . Used 1 | . . . . . 1 . . . . . Hacking Detections 18 | . 6 . . 1 7 4 . . . . Full Trace Events 4 | . 1 . . . 2 1 . . . . Feedback Events . | . . . . . . . . . . . Feedback Blocked . | . . . . . . . . . . . Robot Schematics Acquired 7 | . . . . . . . . . 7 . Robots Built . | . . . . . . . . . . . Authchips . | . . . . . . . . . . . Time . | . . . . . . . . . . . Total Robot Build Rating . | . . . . . . . . . . . Part Schematics Acquired 15 | . 1 . . 2 . . . . 12 . Parts Built . | . . . . . . . . . . . Authchips . | . . . . . . . . . . . Time . | . . . . . . . . . . . Total Part Build Rating . | . . . . . . . . . . . Parts Repaired . | . . . . . . . . . . . Time . | . . . . . . . . . . . Parts Recycled . | . . . . . . . . . . . Recycled Matter . | . . . . . . . . . . . Retrieved Matter . | . . . . . . . . . . . Retrieved Components . | . . . . . . . . . . . Parts Scanalyzed . | . . . . . . . . . . . Part Schematics Acquired . | . . . . . . . . . . . Parts Damaged . | . . . . . . . . . . . Bothacking | -11 -10 -10 -10 -9 -8 -7 -7 -7 -7 -6 ------------ Run | Jun Mat Min Exi Min Mat Fac Low Low Dat Pro Used RIF Installer . | . . . . . . . . . . . Robots Hacked . | . . . . . . . . . . . Non-combat . | . . . . . . . . . . . Combat . | . . . . . . . . . . . Robot Hacks Applied . | . . . . . . . . . . . Relay Couplers Released . | . . . . . . . . . . . Fabnet Peak Effective % . | . . . . . . . . . . . Robots Rewired 2 | . . . . . . 1 . . . 1 Allies Hacked . | . . . . . . . . . . . Hacks Repelled . | . . . . . . . . . . . Allies | -11 -10 -10 -10 -9 -8 -7 -7 -7 -7 -6 -------- Run | Jun Mat Min Exi Min Mat Fac Low Low Dat Pro Total Allies 6 | . . . . 3 . 1 . . . 2 Largest Group 3 | . . . . 3 3 1 . . . 1 Highest-Rated Group 96 | . . . . 40 40 25 . . . 96 Highest-Rated Ally 96 | . . . . 16 16 25 . . . 96 Total Orders 3 | . . . . . 3 . . . . . STAY 3 | . . . . . 3 . . . . . Ally Attacks 35 | . . . . 9 14 3 . . . 9 Total Damage 666 | . . . . 82 164 49 . . . 371 Kills 6 | . . . . 2 2 1 . . . 1 Allies Corrupted . | . . . . . . . . . . . Allies Melted 1 | . . . . . . . . . . 1 Intel | -11 -10 -10 -10 -9 -8 -7 -7 -7 -7 -6 ------- Run | Jun Mat Min Exi Min Mat Fac Low Low Dat Pro Robot Analysis Total 1 | . . . . 1 . . . . . . Derelict Logs Recovered 8 | . . 1 . 2 . . 2 1 . 2 Drone Launches . | . . . . . . . . . . . Drone Recoveries . | . . . . . . . . . . . Exploration | -11 -10 -10 -10 -9 -8 -7 -7 -7 -7 -6 ------------- Run | Jun Mat Min Exi Min Mat Fac Low Low Dat Pro Turns Passed 9716 | 19 1674 736 388 716 684 2344 1052 594 172 1337 Spaces Moved 5296 | 12 882 305 228 638 532 1144 548 317 94 596 Core 56 | . 2 . . . . . . . . 54 Treads 1167 | . 620 305 117 . . . . . . 125 Legs 3801 | . . . 111 638 532 1144 548 317 94 417 Wheels 272 | 12 260 . . . . . . . . . Hover . | . . . . . . . . . . . Flight . | . . . . . . . . . . . Fastest Speed 45 | 100 100 240 90 45 90 90 180 180 180 50 Average Speed 156 | 100 161 240 167 83 90 171 180 180 180 172 Slowest Speed 330 | 100 240 240 240 90 90 330 180 180 180 330 Overloaded Moves 120 | . . . . 94 . 26 . . . . Propulsion Burnouts . | . . . . . . . . . . . Robots Hopped . | . . . . . . . . . . . Cave-ins Triggered . | . . . . . . . . . . . Exploration Rate (%) 56 | 2 89 68 61 88 39 29 68 60 73 39 Regions Visited 10 Branch Regions 7 Pre-discovered Areas 3 | . 1 . . . . . . 1 1 . Known Exits Taken 2 | . . . . . . 1 1 . . . Unknown Exits Taken 8 | 1 1 1 1 1 1 . . 1 1 . Scrap Searched 5 | . . 1 . 1 . . . 1 . 2 Spaces Dug 29 | . . . . 10 8 10 1 . . . Terrain Destroyed 221 | . 4 . . 98 8 23 25 5 . 58 Melee 12 | . . . . . 8 3 1 . . . Projectile 16 | . . . . . . 10 1 . . 5 AOE 193 | . 4 . . 98 . 10 23 5 . 53 Terrain Rammed . | . . . . . . . . . . . Walls Destroyed . | . . . . . . . . . . . Machines Disabled . | . . . . . . . . . . . Actions | -11 -10 -10 -10 -9 -8 -7 -7 -7 -7 -6 --------- Run | Jun Mat Min Exi Min Mat Fac Low Low Dat Pro Total 6279 | 15 1029 310 235 764 683 1413 575 330 97 828 Wait 481 | . 45 2 . 67 89 119 . 1 . 158 Move 5286 | 11 881 304 227 637 531 1143 547 316 93 596 Hop . | . . . . . . . . . . . Pick Up 84 | . 24 2 2 7 11 26 2 2 . 8 Fast Attach 20 | . 4 . 2 . 1 6 . . 2 5 Attach 19 | . 3 . . 3 3 3 . 1 . 6 Detach . | . . . . . . . . . . . Swap 75 | 3 7 1 . 12 8 26 6 3 . 9 Drop 65 | . 13 1 4 5 9 24 1 1 2 5 Fire 226 | 1 51 . . 33 21 62 18 3 . 37 Melee 17 | . . . . . 10 3 1 3 . . Ram . | . . . . . . . . . . . Kick . | . . . . . . . . . . . Crush 1 | . 1 . . . . . . . . . Escape Stasis . | . . . . . . . . . . . Rewire 5 | . . . . . . 1 . . . 4 Trap . | . . . . . . . . . . . Miscellaneous . | . . . . . . . . . . . Route ------- -11/Junkyard -10/Materials (discovered 5 exits: [*Mat x3] / [*Min x2]) -10/Mines (discovered 3 exits: [*Mat x2] / *Exi) -10/Exiles -9/Mines -8/Materials (discovered 2 exits: *Fac / Sto) -7/Factory (discovered 2 exits: *Low x2) -7/Lower Caves -7/Lower Caves (discovered 2 exits: [*Fac] / *Dat) -7/Data Miner -6/Proximity Caves History --------- Turn | Location | Event 4 | -11/Junkyard | Discovered new exit (range 2) 20 | -11/Junkyard | Entered Materials 300 | -10/Materials | Build established: Mutant 308 | -10/Materials | Discovered new exit (range 13) 358 | -10/Materials | Discovered new exit (range 15) 623 | -10/Materials | Discovered new exit (range 15) 1030 | -10/Materials | Discovered new exit (range 9) 1099 | -10/Materials | Discovered new exit (range 8) 1694 | -10/Materials | Entered Mines 1713 | -10/Mines | Received a Rocket Launcher from a helpful Derelict 1879 | -10/Mines | Discovered new exit (range 8) 2087 | -10/Mines | Learned Materials trap positions 2202 | -10/Mines | Discovered new exit (range 8) 2353 | -10/Mines | Deemed a non-threat by the Exiles lab entrance 2356 | -10/Mines | Discovered new exit (range 5) 2430 | -10/Mines | Entered Exiles 2488 | -10/Exiles | Met 8R-AWN 2529 | -10/Exiles | Met EX-HEX 2598 | -10/Exiles | Met EX-BIN 2630 | -10/Exiles | Aligned with FarCom system 2632 | -10/Exiles | Given EX-Vault access code 2690 | -10/Exiles | Opened EX-Vault 2712 | -10/Exiles | Found Potential Leg 2716 | -10/Exiles | Found Potential Leg 2742 | -10/Exiles | Warned to stay clear of 0b10 Research branches 2767 | -10/Exiles | Met EX-DEC 2810 | -10/Exiles | Discovered new exit (range 11) 2818 | -10/Exiles | Left Exiles lab with Potential Leg 2818 | -10/Exiles | Entered Mines 2885 | -9/Mines | YI-UF0 nonchalantly dropped a Grenade Launcher on the ground 2931 | -9/Mines | Destroyed YI-UF0 3037 | -9/Mines | Assembled infested the area 3201 | -9/Mines | Core integrity fell below 50% 3260 | -9/Mines | Found the Drone Emporium 3265 | -9/Mines | Found Prototype Device 3336 | -9/Mines | Found a hidden stash of uninstalled traps 3383 | -9/Mines | Assisted by bots powering up and referring to "LRC-V3" 3384 | -9/Mines | Learned Materials stockpile data 3503 | -9/Mines | Discovered new exit (range 15) 3534 | -9/Mines | Entered Materials 3534 | -8/Materials | Accompanied by 3 allies 3534 | -8/Materials | Evolved 4 slots: Propulsion x2, Utility x2 3535 | -8/Materials | Identified exit to Storage 3536 | -8/Materials | Loaded intel: 20 trap records 3762 | -8/Materials | Discovered new exit (range 16) 4218 | -8/Materials | Entered Factory 4218 | -7/Factory | Evolved 2 slots: Propulsion x1, Utility x1 5475 | -7/Factory | Build established: Hacker-Mutant 6066 | -7/Factory | Build established: Mutant 6255 | -7/Factory | Identified exit to Lower Caves 6562 | -7/Factory | Entered Lower Caves 6658 | -7/Lower Caves | Attracted the attention of an 0b10 checkpoint 7020 | -7/Lower Caves | Identified exit to Lower Caves 7056 | -7/Lower Caves | Learned Factory garrison access intel 7156 | -7/Lower Caves | Encountered a Warlord checkpoint 7614 | -7/Lower Caves | Entered another Lower Caves area 7616 | -7/Lower Caves | Discovered new exit (range 8) 7664 | -7/Lower Caves | Encountered a Warlord checkpoint 7844 | -7/Lower Caves | Found Alien Artifact 7847 | -7/Lower Caves | Identified Dimensional Node Initializer 7847 | -7/Lower Caves | Initialized slip node 8134 | -7/Lower Caves | Discovered new exit (range 8) 8208 | -7/Lower Caves | Entered Data Miner 8209 | -7/Data Miner | Discovered new exit (range 6) 8236 | -7/Data Miner | Met Data Miner 8283 | -7/Data Miner | Learned location of Section 7 (-2) 8283 | -7/Data Miner | Acquired the access code to Warlord's prototype stash 8314 | -7/Data Miner | Received God Mode back door access code from Data Miner 8380 | -7/Data Miner | Entered Proximity Caves 8395 | -6/Proximity Caves | Learned Factory terminal intel 8420 | -6/Proximity Caves | Learned Factory security intel 8559 | -6/Proximity Caves | Escorted by Enhanced Grunt 8839 | -6/Proximity Caves | Core integrity fell below 50% 8850 | -6/Proximity Caves | Lost 3 parts (2n1w) 9353 | -6/Proximity Caves | Attracted the attention of an 0b10 checkpoint 9392 | -6/Proximity Caves | Lost 3 parts (1p1n1u) 9407 | -6/Proximity Caves | Spotted B-75 Beast 9489 | -6/Proximity Caves | Lost 3 parts (1p1n1w) 9545 | -6/Proximity Caves | Released all parts (8) 9717 | -6/Proximity Caves | Self-destructed Last Messages --------------- 09397_ Acquired 8 matter. 09401_ Acquired 3 matter. 09428_ Potential Leg destroyed. 09431_ Gauss Cannon destroyed. 09458_ Lgt. Nuclear Core destroyed. 09468_ G-50 Soldier misfires. 09470_ G-50 Soldier destroyed. 09477_ Broken Lgt. Angular Momentum Engine fries itself beyond repair. 09477_ Acquired 52 matter. 09480_ Corrupted Hvy. Laser self-destruct mechanism malfunctions. 09480_ Acquired Corrupted Hvy. Laser. 09490_ Med. Treads destroyed. 09490_ Adv. Assault Cannon destroyed. 09545_ Released Adv. Heat Sink. 09545_ Released Med. Treads. 09545_ Released Huge Storage Unit. 09545_ Released Adv. Targeting Computer. 09545_ Released Adv. Visual Processing Unit. 09545_ Released Med. Treads. 09545_ Released Imp. Deuterium Engine. Map ----- +----------------------------------------------------+ | | | | | | | | | | | | | | | | | | | ?????????????????????????????????????????????????? | | ?????????????????????????????????????????????????? | | ?????????????????????????????????????????????????? | | ?????????????????????????????????????????????????? | | ?????????????????????????????????????????????????? | | ?????????????????????????????????????????????????? | | ?????????????????????????????????????????????????? | | ?????????????????????????????????????????????????? | | ?????????????????????????????????????????????????? | | ?????????????????????????????????????????????????? | | ???????????????#######???????????????????????????? | | ???????????????#"""""#???????????????????????????? | | ???????????????#"""""#???????????????????????????? | | ???????????????#"""""#???????????????????????????? | | ????????????????# #????????????????????????????? | | ??????????????### #######??????????????????????? | | ?????????????## ## @#??????????????????????? | | ?????????????# ## ##??????????????????????? | | ?????????????# #######??????????????????# | | ?????????????# ### ####??????????????## | | ?????????????# ### ###???????????## | | ?????????????## #### ##??????????# | | ??????????????# # ##### ##?????????# | | ??????????????# ##???####?## | | ??????????????# ## #???# ##?## | | ?????????????## ###### ### ##??# ???# | | ?????????????# ##????###?# " " "" ##?# #???? | | ?????????????# ##???????## " """ ### #???? | | ?????????????## #??????## "" "" ## #???? | | ??????????????# ######## " ### #???? | | ??????????????# ### """" ##?# #?### | | ?????????????## ### #### """"" #?## #?# # | | ?????????????# ## #??# "" ### *###! | | ?????????????### #??## ## =!##!/= | | ???????????????# #???## ## #### =!]!=![ | | ???????????????# #???## ### ### ![!![! | | ???????????????# #?#### #?# ## =!!!! | | ???????????????## ##?# ##### ######## | | ????????????###?### #??# [ #??# #""""*"# | | ????????????# #??# #?## #??# #" ! # | | ????????????# ### ### #### ### #" ## ! | +----------------------------------------------------+ Best States ------------- Heat Dissipation 53 Energy Generation 18 Energy Capacity 310 Matter Stores 300 Matter Capacity 300 Sight Range 20 Terrain Scan Density 10 Armor Coverage 225 Resistance: KI 30 Evasion (%) 66 Targeting Accuracy 8 Recoil Reduction 4 Offensive Hacking 20 Item Schematics ----------------- Huge Storage Unit | -10/Materials | Hacked Cargo Storage Unit | -9/Mines | Hacked Arm. Wheel | -9/Mines | Hacked Combat Drone Bay | -7/Data Miner | Free Lgt. Regenerative Plating | -7/Data Miner | Free Cld. Aerolev Unit | -7/Data Miner | Free Exp. Utility Shielding | -7/Data Miner | Free Cld. Plasma Cannon | -7/Data Miner | Free Gyrokinetic Inverter | -7/Data Miner | Free Adv. Drone Bay | -7/Data Miner | Free Smartbomb Launcher | -7/Data Miner | Free Force Field | -7/Data Miner | Free Imp. Powered Armor | -7/Data Miner | Free Imp. Arc Projector | -7/Data Miner | Free Phase Gun | -7/Data Miner | Free Robot Schematics ------------------ W-25 Informer | -7/Data Miner | Free R-10 Processor | -7/Data Miner | Free A-15 Conveyor | -7/Data Miner | Free H-55 Commando | -7/Data Miner | Free Y-64 Sentinel | -7/Data Miner | Free M-22 Extractor | -7/Data Miner | Free B-48 Gladiator | -7/Data Miner | Free Fabricated ------------ Nothing Alien Tech Used ----------------- Dimensional Node Initializer Achievements -------------- Collateral Damage Challenges ------------ None Game ------ Seed ArmorMiniMount Manual? 0 Play Time 01:35:44 Cumulative 56.1 hours Start 2023.03.04 @ 22:45:01 End 2023.03.05 @ 21:35:38 Sessions 3 Manual Loads 0 Difficulty Rogue Special Mode None Game No. 49 Rogue 49 Adventurer 0 Explorer 0 Win Type - Total 0 Types 0/0/0/0/0/0/0/0/0 Lore% 28 Gallery% 42 Achievement% 37 Wizard Run 0 Options --------- ASCII 0 Keyboard 0 Movement Numpad Keybinds 0 Fullscreen 1 Font 12/Smallcaps Map View 83x54 Tactical HUD 1 Map Filters NONE Filters NONE Steam 1 RUN: 1bf47cc1-135e-4cfc-9dcd-0d10e90704e5